[Event "*** Titled Tuesday Blitz"]
[Site "Chess.com"]
[Date "2020.04.21"]
[Round "2"]
[White "Andreikka"]
[Black "vovachesss"]
[Result "0-1"]
[WhiteElo "2947"]
[BlackElo "2620"]
[TimeControl "180+1"]
[EndTime "10:19:19 PDT"]
[Termination "vovachesss won by resignation"]

1. c4 {[%clk 0:03:00.9]} 1... d6 {[%clk 0:02:57.6]} 2. Nc3 {[%clk 0:03:00.3]}
2... Nf6 {[%clk 0:02:56.5]} 3. d4 {[%clk 0:02:58.5]} 3... Bf5 {[%clk 0:02:44.2]}
4. g3 {[%clk 0:02:51.9]} 4... e5 {[%clk 0:02:37.9]} 5. Nf3 {[%clk 0:02:48.9]}
5... exd4 {[%clk 0:02:33.1]} 6. Nxd4 {[%clk 0:02:48.8]} 6... Bg6 {[%clk
0:02:25.9]} 7. Bg2 {[%clk 0:02:48]} 7... c6 {[%clk 0:02:26.6]} 8. O-O {[%clk
0:02:45.6]} 8... Be7 {[%clk 0:02:27.2]} 9. e4 {[%clk 0:02:45.8]} 9... O-O {[%clk
0:02:26.3]} 10. f4 {[%clk 0:02:45.4]} 10... h6 {[%clk 0:02:11.2]} 11. g4 {[%clk
0:02:33.5]} 11... Nbd7 {[%clk 0:02:04.7]} 12. Be3 {[%clk 0:02:33.1]} 12... Re8
{[%clk 0:02:03.5]} 13. Nf5 {[%clk 0:01:54.2]} 13... Bf8 {[%clk 0:01:44.8]} 14.
Bf2 {[%clk 0:01:44.3]} 14... Nc5 {[%clk 0:01:32]} 15. Re1 {[%clk 0:01:36.4]}
15... Ne6 {[%clk 0:01:22.3]} 16. Qf3 {[%clk 0:01:26.8]} 16... Qa5 {[%clk
0:01:18]} 17. Rad1 {[%clk 0:01:25.8]} 17... Rad8 {[%clk 0:01:18.2]} 18. h3
{[%clk 0:01:22.5]} 18... Qc7 {[%clk 0:01:02]} 19. a3 {[%clk 0:01:08.5]} 19...
Nd7 {[%clk 0:00:55]} 20. h4 {[%clk 0:00:58.1]} 20... Nb6 {[%clk 0:00:52.4]} 21.
b3 {[%clk 0:00:55.6]} 21... Nc5 {[%clk 0:00:51.5]} 22. b4 {[%clk 0:00:46.3]}
22... Ne6 {[%clk 0:00:50.7]} 23. Bf1 {[%clk 0:00:46.8]} 23... Rd7 {[%clk
0:00:44.9]} 24. h5 {[%clk 0:00:46.1]} 24... Bh7 {[%clk 0:00:42.9]} 25. Rd2
{[%clk 0:00:40.1]} 25... g6 {[%clk 0:00:40.8]} 26. Ng3 {[%clk 0:00:30.5]} 26...
Bg7 {[%clk 0:00:36.1]} 27. Nd1 {[%clk 0:00:19.4]} 27... g5 {[%clk 0:00:35.5]}
28. f5 {[%clk 0:00:16]} 28... Nf4 {[%clk 0:00:35]} 29. Nc3 {[%clk 0:00:15.1]}
29... Rdd8 {[%clk 0:00:32.9]} 30. Red1 {[%clk 0:00:15.6]} 30... Nd7 {[%clk
0:00:32.8]} 31. Nge2 {[%clk 0:00:08.2]} 31... Ne5 {[%clk 0:00:32.8]} 32. Qg3
{[%clk 0:00:08.6]} 32... Nxc4 {[%clk 0:00:31]} 33. Ra2 {[%clk 0:00:08.4]} 33...
Nxe2+ {[%clk 0:00:30]} 34. Bxe2 {[%clk 0:00:08.6]} 34... Ne5 {[%clk 0:00:29.5]}
35. Rad2 {[%clk 0:00:09.1]} 35... Re7 {[%clk 0:00:28.7]} 36. Bd4 {[%clk
0:00:08]} 36... Red7 {[%clk 0:00:28.4]} 37. Kg2 {[%clk 0:00:07.7]} 37... a6
{[%clk 0:00:26.9]} 38. Qf2 {[%clk 0:00:07.8]} 38... Bf6 {[%clk 0:00:24.6]} 39.
Bb6 {[%clk 0:00:07.5]} 39... Qc8 {[%clk 0:00:23.3]} 40. Bxd8 {[%clk 0:00:08.1]}
40... Qxd8 {[%clk 0:00:24.2]} 41. Na4 {[%clk 0:00:07.8]} 41... Qe7 {[%clk
0:00:18.4]} 42. Nb6 {[%clk 0:00:07.5]} 42... Rd8 {[%clk 0:00:19]} 43. Qe3 {[%clk
0:00:06.6]} 43... Bg7 {[%clk 0:00:18]} 44. Nc4 {[%clk 0:00:05.8]} 44... Nxc4
{[%clk 0:00:16.8]} 45. Bxc4 {[%clk 0:00:06.4]} 45... Be5 {[%clk 0:00:17.7]} 46.
Be2 {[%clk 0:00:06.3]} 46... Kg7 {[%clk 0:00:17.7]} 47. Rd3 {[%clk 0:00:05.9]}
47... f6 {[%clk 0:00:18.1]} 48. Bf3 {[%clk 0:00:05.5]} 48... Bg8 {[%clk
0:00:18.5]} 49. Rc1 {[%clk 0:00:04.7]} 49... Rd7 {[%clk 0:00:17]} 50. Rc2 {[%clk
0:00:05.2]} 50... Bf7 {[%clk 0:00:17.3]} 51. a4 {[%clk 0:00:05.6]} 51... Qf8
{[%clk 0:00:16.4]} 52. b5 {[%clk 0:00:06.1]} 52... axb5 {[%clk 0:00:16]} 53.
axb5 {[%clk 0:00:07]} 53... c5 {[%clk 0:00:16.9]} 54. Ra3 {[%clk 0:00:07.3]}
54... Bd4 {[%clk 0:00:15]} 55. Qd2 {[%clk 0:00:07.7]} 55... Qe7 {[%clk
0:00:15.4]} 56. Ra8 {[%clk 0:00:07.1]} 56... Qe5 {[%clk 0:00:15.9]} 57. b6
{[%clk 0:00:05.9]} 57... c4 {[%clk 0:00:14.1]} 58. Rc8 {[%clk 0:00:05.8]} 58...
Bxb6 {[%clk 0:00:11.1]} 59. Qb4 {[%clk 0:00:06]} 59... Qd4 {[%clk 0:00:10.8]}
60. Qe1 {[%clk 0:00:04.7]} 60... Bc5 {[%clk 0:00:10.1]} 61. Rd2 {[%clk
0:00:03.4]} 61... Qe5 {[%clk 0:00:10.2]} 62. Qg3 {[%clk 0:00:03.1]} 62... Qc3
{[%clk 0:00:07.2]} 63. Rd1 {[%clk 0:00:03.1]} 63... b5 {[%clk 0:00:07.5]} 64.
Kh3 {[%clk 0:00:03.7]} 64... Re7 {[%clk 0:00:07.1]} 65. Rxc5 {[%clk 0:00:03.1]}
65... dxc5 {[%clk 0:00:07.2]} 66. e5 {[%clk 0:00:02.6]} 66... Qxe5 {[%clk
0:00:07.2]} 67. Qxe5 {[%clk 0:00:03.2]} 67... Rxe5 {[%clk 0:00:05.3]} 68. Rd7
{[%clk 0:00:03.6]} 68... c3 {[%clk 0:00:05]} 69. Bd1 {[%clk 0:00:04.1]} 69... c4
{[%clk 0:00:04.7]} 70. Rb7 {[%clk 0:00:04]} 70... Rd5 {[%clk 0:00:04]} 71. Bf3
{[%clk 0:00:04.1]} 71... Rd3 {[%clk 0:00:04.2]} 72. Kg3 {[%clk 0:00:04.6]} 72...
c2 {[%clk 0:00:04.2]} 0-1

[Event "*** Titled Tuesday Blitz"]
[Site "Chess.com"]
[Date "2020.04.21"]
[Round "2"]
[White "Mikhail_Biryukov"]
[Black "2165149677570"]
[Result "1-0"]
[WhiteElo "2652"]
[BlackElo "2324"]
[TimeControl "180+1"]
[EndTime "10:19:21 PDT"]
[Termination "Mikhail_Biryukov won by resignation"]

1. e4 {[%clk 0:03:00.9]} 1... c5 {[%clk 0:03:00.2]} 2. Nf3 {[%clk 0:02:59.7]}
2... d6 {[%clk 0:03:00.5]} 3. c3 {[%clk 0:02:57.1]} 3... Nf6 {[%clk 0:03:00.3]}
4. Bb5+ {[%clk 0:02:56]} 4... Nc6 {[%clk 0:02:52.8]} 5. d3 {[%clk 0:02:54.3]}
5... Bd7 {[%clk 0:02:52.7]} 6. O-O {[%clk 0:02:53.8]} 6... g6 {[%clk 0:02:49.4]}
7. Re1 {[%clk 0:02:53.7]} 7... Bg7 {[%clk 0:02:49.8]} 8. d4 {[%clk 0:02:53.8]}
8... O-O {[%clk 0:02:50]} 9. d5 {[%clk 0:02:53.6]} 9... Ne5 {[%clk 0:02:47.2]}
10. Bxd7 {[%clk 0:02:52.4]} 10... Qxd7 {[%clk 0:02:33.7]} 11. Nxe5 {[%clk
0:02:47.9]} 11... dxe5 {[%clk 0:02:34.6]} 12. Nd2 {[%clk 0:02:48.2]} 12... b5
{[%clk 0:02:32.4]} 13. a4 {[%clk 0:02:46.7]} 13... a6 {[%clk 0:02:32.2]} 14. Nf3
{[%clk 0:02:45.5]} 14... Nh5 {[%clk 0:02:28.9]} 15. Be3 {[%clk 0:02:44]} 15...
c4 {[%clk 0:02:26.4]} 16. Bc5 {[%clk 0:02:43.8]} 16... Rfc8 {[%clk 0:01:56.1]}
17. Ba3 {[%clk 0:02:42.6]} 17... e6 {[%clk 0:01:51.6]} 18. axb5 {[%clk 0:02:35]}
18... axb5 {[%clk 0:01:50.8]} 19. dxe6 {[%clk 0:02:30.8]} 19... Qxe6 {[%clk
0:01:51.7]} 20. Qd5 {[%clk 0:02:30.9]} 20... Nf4 {[%clk 0:01:42.3]} 21. Qxb5
{[%clk 0:02:07.2]} 21... Qg4 {[%clk 0:01:39.4]} 22. g3 {[%clk 0:02:01.8]} 22...
Nh3+ {[%clk 0:01:32.4]} 23. Kg2 {[%clk 0:02:01.4]} 23... Nf4+ {[%clk 0:01:33]}
24. Kg1 {[%clk 0:01:59.4]} 24... Qxf3 {[%clk 0:01:25.1]} 25. gxf4 {[%clk
0:01:59]} 25... Bh6 {[%clk 0:01:09.5]} 26. Re3 {[%clk 0:01:51.9]} 26... Qxf4
{[%clk 0:01:05.3]} 27. Qd7 {[%clk 0:01:51.2]} 27... Rd8 {[%clk 0:00:54.1]} 28.
Qh3 {[%clk 0:01:51]} 28... Qg5+ {[%clk 0:00:38.4]} 29. Qg3 {[%clk 0:01:39.6]}
29... Qxg3+ {[%clk 0:00:37.7]} 30. Rxg3 {[%clk 0:01:39.7]} 30... Bf4 {[%clk
0:00:28.9]} 31. Rf3 {[%clk 0:01:34.8]} 31... Rd2 {[%clk 0:00:26.7]} 32. Kf1
{[%clk 0:01:32.7]} 32... Bxh2 {[%clk 0:00:24.8]} 33. Ke1 {[%clk 0:01:30.7]}
33... Rd7 {[%clk 0:00:21.2]} 34. Rf6 {[%clk 0:01:27]} 34... Bf4 {[%clk
0:00:20.6]} 35. Rd1 {[%clk 0:01:23.2]} 35... Rxd1+ {[%clk 0:00:18.9]} 36. Kxd1
{[%clk 0:01:23.4]} 36... h5 {[%clk 0:00:19.6]} 37. Ke2 {[%clk 0:01:20.8]} 37...
Kg7 {[%clk 0:00:19.4]} 38. Rc6 {[%clk 0:01:20.7]} 38... h4 {[%clk 0:00:17.7]}
39. Kf3 {[%clk 0:01:19.1]} 39... h3 {[%clk 0:00:17.3]} 40. Rd6 {[%clk
0:01:16.7]} 40... Rh8 {[%clk 0:00:11.9]} 41. Rd1 {[%clk 0:01:16.5]} 41... f5
{[%clk 0:00:10.4]} 42. exf5 {[%clk 0:01:05]} 42... gxf5 {[%clk 0:00:11.3]} 43.
Rg1+ {[%clk 0:01:04.3]} 43... Kf6 {[%clk 0:00:11.9]} 44. Rd1 {[%clk 0:01:03.1]}
44... Kg5 {[%clk 0:00:11]} 45. Rg1+ {[%clk 0:01:02.3]} 45... Kh4 {[%clk
0:00:11.5]} 46. Be7+ {[%clk 0:01:01.6]} 46... Kh5 {[%clk 0:00:11.3]} 47. Bf6
{[%clk 0:00:52.9]} 47... Re8 {[%clk 0:00:10.4]} 48. Rd1 {[%clk 0:00:43.9]} 48...
Rb8 {[%clk 0:00:09.4]} 49. Rb1 {[%clk 0:00:38.6]} 49... h2 {[%clk 0:00:09.9]}
50. Kg2 {[%clk 0:00:38.1]} 50... Kg4 {[%clk 0:00:10.5]} 51. f3+ {[%clk
0:00:37.8]} 51... Kh5 {[%clk 0:00:10.4]} 52. Be7 {[%clk 0:00:38]} 52... Rb7
{[%clk 0:00:09.6]} 53. Ba3 {[%clk 0:00:37.6]} 53... Kg6 {[%clk 0:00:08.7]} 54.
Rd1 {[%clk 0:00:37.3]} 54... Kf7 {[%clk 0:00:07.7]} 55. Rd6 {[%clk 0:00:37.4]}
55... Rb5 {[%clk 0:00:06]} 56. Bb4 {[%clk 0:00:35.7]} 56... Bc1 {[%clk
0:00:05.5]} 57. Kxh2 {[%clk 0:00:33.4]} 57... Bxb2 {[%clk 0:00:05.9]} 58. Rc6
{[%clk 0:00:33.7]} 58... Bc1 {[%clk 0:00:03.7]} 59. Rxc4 {[%clk 0:00:32.9]}
59... Bf4+ {[%clk 0:00:04.6]} 60. Kg2 {[%clk 0:00:32.6]} 60... Ke6 {[%clk
0:00:05.5]} 61. Rc8 {[%clk 0:00:31.8]} 61... Rb7 {[%clk 0:00:05.3]} 62. Re8+
{[%clk 0:00:30.4]} 62... Kd5 {[%clk 0:00:05.3]} 63. Rf8 {[%clk 0:00:29.8]} 63...
Ke6 {[%clk 0:00:04.2]} 64. Kf2 {[%clk 0:00:29.2]} 64... Ra7 {[%clk 0:00:03.9]}
65. Re8+ {[%clk 0:00:27.5]} 65... Kd5 {[%clk 0:00:04]} 66. Rd8+ {[%clk
0:00:27.7]} 66... Ke6 {[%clk 0:00:04.4]} 67. Rd6+ {[%clk 0:00:27.5]} 67... Kf7
{[%clk 0:00:04]} 68. Rd1 {[%clk 0:00:23]} 68... Ra2+ {[%clk 0:00:04.9]} 69. Kf1
{[%clk 0:00:23.3]} 69... Rh2 {[%clk 0:00:05.5]} 70. Rd7+ {[%clk 0:00:22.8]}
70... Ke6 {[%clk 0:00:05.6]} 71. Rd6+ {[%clk 0:00:23.1]} 71... Kf7 {[%clk
0:00:06.2]} 72. c4 {[%clk 0:00:23.4]} 72... Rc2 {[%clk 0:00:05.7]} 73. c5 {[%clk
0:00:23.1]} 73... Rb2 {[%clk 0:00:06]} 74. Be1 {[%clk 0:00:22.7]} 74... e4
{[%clk 0:00:06.3]} 75. fxe4 {[%clk 0:00:22.4]} 75... fxe4 {[%clk 0:00:07.2]} 76.
Rd4 {[%clk 0:00:23]} 76... Rb1 {[%clk 0:00:07.3]} 77. Rxe4 {[%clk 0:00:22.9]}
77... Bg3 {[%clk 0:00:08]} 78. c6 {[%clk 0:00:20]} 78... Rxe1+ {[%clk
0:00:08.2]} 79. Rxe1 {[%clk 0:00:19.6]} 79... Bxe1 {[%clk 0:00:07]} 80. c7
{[%clk 0:00:19.8]} 1-0

[Event "*** Titled Tuesday Blitz"]
[Site "Chess.com"]
[Date "2020.04.21"]
[Round "2"]
[White "FairChess_on_YouTube"]
[Black "Gentlejimmy7"]
[Result "1-0"]
[WhiteElo "3044"]
[BlackElo "2611"]
[TimeControl "180+1"]
[EndTime "10:19:41 PDT"]
[Termination "FairChess_on_YouTube won on time"]

1. e4 {[%clk 0:03:00.9]} 1... e5 {[%clk 0:02:48.2]} 2. Nf3 {[%clk 0:03:00.4]}
2... Nc6 {[%clk 0:02:47.8]} 3. Bb5 {[%clk 0:03:00.3]} 3... a6 {[%clk 0:02:47.5]}
4. Ba4 {[%clk 0:03:00.5]} 4... Nf6 {[%clk 0:02:46.6]} 5. O-O {[%clk 0:03:00.6]}
5... b5 {[%clk 0:02:44.4]} 6. Bb3 {[%clk 0:03:00.2]} 6... Be7 {[%clk 0:02:44.8]}
7. Re1 {[%clk 0:02:55.2]} 7... O-O {[%clk 0:02:43.9]} 8. d4 {[%clk 0:02:54.9]}
8... d6 {[%clk 0:02:41.8]} 9. c3 {[%clk 0:02:54.6]} 9... Bg4 {[%clk 0:02:40]}
10. d5 {[%clk 0:02:54.7]} 10... Na5 {[%clk 0:02:37.5]} 11. Bc2 {[%clk
0:02:54.9]} 11... c6 {[%clk 0:02:31.6]} 12. h3 {[%clk 0:02:55]} 12... Bh5 {[%clk
0:02:26.3]} 13. dxc6 {[%clk 0:02:53.9]} 13... Qc7 {[%clk 0:02:25.3]} 14. Nbd2
{[%clk 0:02:50.9]} 14... Qxc6 {[%clk 0:02:24.6]} 15. Nf1 {[%clk 0:02:50.1]}
15... Nc4 {[%clk 0:02:18.5]} 16. Ng3 {[%clk 0:02:48.2]} 16... Bg6 {[%clk
0:02:18.2]} 17. Nh4 {[%clk 0:02:45]} 17... Rfe8 {[%clk 0:02:17.2]} 18. Nhf5
{[%clk 0:02:28.1]} 18... Bf8 {[%clk 0:02:15.4]} 19. a4 {[%clk 0:02:25.8]} 19...
Rad8 {[%clk 0:02:14.2]} 20. axb5 {[%clk 0:02:25.2]} 20... axb5 {[%clk
0:02:15.1]} 21. Nh4 {[%clk 0:01:40.2]} 21... d5 {[%clk 0:01:54]} 22. Nxg6 {[%clk
0:01:40.2]} 22... hxg6 {[%clk 0:01:53.4]} 23. Qf3 {[%clk 0:01:34.3]} 23... d4
{[%clk 0:01:48.5]} 24. Bb3 {[%clk 0:01:30]} 24... Ra8 {[%clk 0:01:27.2]} 25.
Rxa8 {[%clk 0:01:26]} 25... Rxa8 {[%clk 0:01:28.1]} 26. cxd4 {[%clk 0:01:02.3]}
26... exd4 {[%clk 0:01:26.7]} 27. Rd1 {[%clk 0:01:02.8]} 27... Ra1 {[%clk
0:01:20.8]} 28. Bf4 {[%clk 0:00:50.5]} 28... Rxd1+ {[%clk 0:01:17.9]} 29. Qxd1
{[%clk 0:00:51.4]} 29... Bc5 {[%clk 0:00:50.6]} 30. Qe2 {[%clk 0:00:49.7]} 30...
Qe6 {[%clk 0:00:43.1]} 31. e5 {[%clk 0:00:42.9]} 31... Nd5 {[%clk 0:00:31.6]}
32. Bxc4 {[%clk 0:00:42.5]} 32... bxc4 {[%clk 0:00:32.5]} 33. Qxc4 {[%clk
0:00:42.2]} 33... Nxf4 {[%clk 0:00:32.9]} 34. Qxc5 {[%clk 0:00:42.1]} 34... d3
{[%clk 0:00:33.5]} 35. Qd4 {[%clk 0:00:38]} 35... g5 {[%clk 0:00:33.3]} 36. Kh2
{[%clk 0:00:29.8]} 36... Qb3 {[%clk 0:00:31.9]} 37. Qd8+ {[%clk 0:00:24.7]}
37... Kh7 {[%clk 0:00:31.5]} 38. Qxg5 {[%clk 0:00:25.3]} 38... d2 {[%clk
0:00:29.7]} 39. Qh4+ {[%clk 0:00:23.1]} 39... Kg8 {[%clk 0:00:29.1]} 40. Qd8+
{[%clk 0:00:22.9]} 40... Kh7 {[%clk 0:00:29.6]} 41. Qxd2 {[%clk 0:00:23.4]}
41... Nd3 {[%clk 0:00:30.1]} 42. Qe3 {[%clk 0:00:19.8]} 42... Qd5 {[%clk
0:00:25.1]} 43. Qe4+ {[%clk 0:00:15.3]} 43... Qxe4 {[%clk 0:00:25.4]} 44. Nxe4
{[%clk 0:00:16.2]} 44... Nxb2 {[%clk 0:00:25.8]} 45. e6 {[%clk 0:00:12.8]} 45...
fxe6 {[%clk 0:00:22]} 46. Ng5+ {[%clk 0:00:12.9]} 46... Kg6 {[%clk 0:00:22.6]}
47. Nxe6 {[%clk 0:00:13.8]} 47... Nd3 {[%clk 0:00:22.3]} 48. Kg3 {[%clk
0:00:13.9]} 48... Kf6 {[%clk 0:00:19.7]} 49. Nf4 {[%clk 0:00:14]} 49... Ne5
{[%clk 0:00:20]} 50. Nh5+ {[%clk 0:00:14.2]} 50... Kg6 {[%clk 0:00:19.2]} 51.
Nf4+ {[%clk 0:00:13.6]} 51... Kf5 {[%clk 0:00:18.8]} 52. Nd5 {[%clk 0:00:14.2]}
52... g5 {[%clk 0:00:18.1]} 53. Ne3+ {[%clk 0:00:13.8]} 53... Kg6 {[%clk
0:00:18.1]} 54. h4 {[%clk 0:00:11.8]} 54... gxh4+ {[%clk 0:00:16.8]} 55. Kxh4
{[%clk 0:00:12.7]} 55... Nd3 {[%clk 0:00:17.3]} 56. f3 {[%clk 0:00:12.8]} 56...
Nf4 {[%clk 0:00:16.7]} 57. g4 {[%clk 0:00:11.9]} 57... Nd3 {[%clk 0:00:14.2]}
58. Ng2 {[%clk 0:00:10.9]} 58... Ne5 {[%clk 0:00:11.6]} 59. f4 {[%clk
0:00:10.3]} 59... Nf3+ {[%clk 0:00:12.1]} 60. Kg3 {[%clk 0:00:10.2]} 60... Nd4
{[%clk 0:00:12.6]} 61. Ne3 {[%clk 0:00:10]} 61... Ne2+ {[%clk 0:00:12.8]} 62.
Kf3 {[%clk 0:00:10.2]} 62... Nd4+ {[%clk 0:00:10.7]} 63. Ke4 {[%clk 0:00:10.4]}
63... Nc6 {[%clk 0:00:09.8]} 64. Nc4 {[%clk 0:00:09.9]} 64... Ne7 {[%clk
0:00:07.4]} 65. Ne5+ {[%clk 0:00:09.5]} 65... Kf6 {[%clk 0:00:07.5]} 66. g5+
{[%clk 0:00:09.8]} 66... Ke6 {[%clk 0:00:07.5]} 67. Nf3 {[%clk 0:00:10.1]} 67...
Nc8 {[%clk 0:00:03.7]} 68. f5+ {[%clk 0:00:09.5]} 68... Kf7 {[%clk 0:00:04.3]}
69. Ke5 {[%clk 0:00:09.6]} 69... Ne7 {[%clk 0:00:04.3]} 70. Nd4 {[%clk 0:00:09]}
70... Nc8 {[%clk 0:00:02]} 71. Nb5 {[%clk 0:00:09]} 71... Nb6 {[%clk 0:00:01.9]}
72. Nd6+ {[%clk 0:00:09]} 72... Kg7 {[%clk 0:00:01.6]} 73. Ke6 {[%clk
0:00:09.3]} 73... Kf8 {[%clk 0:00:02.1]} 74. f6 {[%clk 0:00:08.8]} 74... Na8
{[%clk 0:00:03]} 75. Nb5 {[%clk 0:00:06.2]} 75... Nb6 {[%clk 0:00:03]} 76. g6
{[%clk 0:00:06.8]} 76... Nc4 {[%clk 0:00:03.4]} 77. Nd6 {[%clk 0:00:06.9]} 77...
Nb6 {[%clk 0:00:02.7]} 78. Nf5 {[%clk 0:00:06.6]} 78... Nc4 {[%clk 0:00:01.3]}
79. g7+ {[%clk 0:00:06.8]} 79... Kg8 {[%clk 0:00:01.8]} 80. Ne7+ {[%clk
0:00:07.2]} 1-0

[Event "*** Titled Tuesday Blitz"]
[Site "Chess.com"]
[Date "2020.04.21"]
[Round "2"]
[White "Onwgs"]
[Black "Chessalary"]
[Result "1-0"]
[WhiteElo "2477"]
[BlackElo "2254"]
[TimeControl "180+1"]
[EndTime "10:19:44 PDT"]
[Termination "Onwgs won by resignation"]

1. e4 {[%clk 0:03:00.3]} 1... e6 {[%clk 0:03:00]} 2. d4 {[%clk 0:03:00.4]} 2...
d5 {[%clk 0:03:00.9]} 3. Nd2 {[%clk 0:03:01.1]} 3... c5 {[%clk 0:02:58.3]} 4.
exd5 {[%clk 0:03:00.6]} 4... exd5 {[%clk 0:02:59.2]} 5. Ngf3 {[%clk 0:03:00]}
5... Nc6 {[%clk 0:02:54.9]} 6. Bb5 {[%clk 0:03:00.3]} 6... Nf6 {[%clk
0:02:54.7]} 7. O-O {[%clk 0:03:00]} 7... Be7 {[%clk 0:02:54.4]} 8. dxc5 {[%clk
0:02:59.4]} 8... O-O {[%clk 0:02:54.5]} 9. Nb3 {[%clk 0:02:59.3]} 9... Ne4
{[%clk 0:02:54.6]} 10. Bxc6 {[%clk 0:02:55.6]} 10... bxc6 {[%clk 0:02:53]} 11.
Nbd4 {[%clk 0:02:56.2]} 11... Qc7 {[%clk 0:02:38.8]} 12. Re1 {[%clk 0:02:54.5]}
12... Bxc5 {[%clk 0:02:38.4]} 13. c3 {[%clk 0:02:54.2]} 13... Bg4 {[%clk
0:02:37.6]} 14. h3 {[%clk 0:02:52.9]} 14... Bxf3 {[%clk 0:02:29.7]} 15. Qxf3
{[%clk 0:02:52.7]} 15... Bxd4 {[%clk 0:02:30.1]} 16. cxd4 {[%clk 0:02:52.5]}
16... Rfe8 {[%clk 0:02:30.4]} 17. Be3 {[%clk 0:02:43.5]} 17... Rab8 {[%clk
0:02:29.7]} 18. b3 {[%clk 0:02:43.2]} 18... a5 {[%clk 0:02:29.6]} 19. Rac1
{[%clk 0:02:42.7]} 19... a4 {[%clk 0:02:28.4]} 20. bxa4 {[%clk 0:02:42.5]} 20...
Ra8 {[%clk 0:02:27.2]} 21. Qh5 {[%clk 0:02:37.9]} 21... Rxa4 {[%clk 0:02:21.8]}
22. Qxd5 {[%clk 0:02:37.4]} 22... cxd5 {[%clk 0:02:22.7]} 23. Rxc7 {[%clk
0:02:36.7]} 23... Rxa2 {[%clk 0:02:23.1]} 24. Rb1 {[%clk 0:02:34.2]} 24... Nd6
{[%clk 0:02:08.9]} 25. Rd7 {[%clk 0:02:30.2]} 25... Nf5 {[%clk 0:01:53.7]} 26.
Rbb7 {[%clk 0:02:29.6]} 26... Ra1+ {[%clk 0:00:35.5]} 27. Kh2 {[%clk 0:02:27.4]}
27... Nxe3 {[%clk 0:00:36]} 28. fxe3 {[%clk 0:02:23.9]} 28... Rf1 {[%clk
0:00:36.4]} 29. Re7 {[%clk 0:02:22.6]} 29... Kf8 {[%clk 0:00:32.1]} 30. Rxe8+
{[%clk 0:02:14.2]} 30... Kxe8 {[%clk 0:00:33]} 31. Rb5 {[%clk 0:02:14.3]} 31...
Re1 {[%clk 0:00:28.1]} 32. Rb3 {[%clk 0:02:13.3]} 32... Ke7 {[%clk 0:00:28.4]}
33. Kg3 {[%clk 0:02:13.8]} 33... Ke6 {[%clk 0:00:27.7]} 34. Kf3 {[%clk
0:02:11.1]} 34... Rf1+ {[%clk 0:00:23.8]} 35. Ke2 {[%clk 0:02:10.7]} 35... Ra1
{[%clk 0:00:23.4]} 36. Rb6+ {[%clk 0:02:06.1]} 36... Kf5 {[%clk 0:00:22.8]} 37.
Rb7 {[%clk 0:02:06.2]} 37... Ke6 {[%clk 0:00:21.8]} 38. Kf3 {[%clk 0:02:03.2]}
38... Rf1+ {[%clk 0:00:21.4]} 39. Ke2 {[%clk 0:02:03.5]} 39... Ra1 {[%clk
0:00:21.7]} 40. Kf2 {[%clk 0:02:03.5]} 40... Ra2+ {[%clk 0:00:21.7]} 41. Kf3
{[%clk 0:02:03.7]} 41... Ra1 {[%clk 0:00:22.6]} 42. Rb6+ {[%clk 0:02:01.1]}
42... Kf5 {[%clk 0:00:23]} 43. g4+ {[%clk 0:02:00.9]} 43... Kg5 {[%clk
0:00:21.4]} 44. Rd6 {[%clk 0:01:56]} 44... Ra5 {[%clk 0:00:20.8]} 45. Kg3 {[%clk
0:01:55.3]} 45... f6 {[%clk 0:00:20]} 46. h4+ {[%clk 0:01:54.7]} 46... Kg6
{[%clk 0:00:20.3]} 47. Kf4 {[%clk 0:01:54.7]} 47... Rb5 {[%clk 0:00:19.3]} 48.
Rd7 {[%clk 0:01:53.3]} 48... Ra5 {[%clk 0:00:16.1]} 49. Kg3 {[%clk 0:01:53.5]}
49... Ra3 {[%clk 0:00:15.4]} 50. Re7 {[%clk 0:01:47.9]} 50... Ra5 {[%clk
0:00:14.4]} 51. h5+ {[%clk 0:01:47.4]} 51... Kh6 {[%clk 0:00:14]} 52. Re6 {[%clk
0:01:45.1]} 52... Ra1 {[%clk 0:00:11.5]} 53. Rd6 {[%clk 0:01:43.7]} 53... Ra5
{[%clk 0:00:11]} 54. Kh4 {[%clk 0:01:44.1]} 54... g5+ {[%clk 0:00:09.1]} 55. Kg3
{[%clk 0:01:31.7]} 55... Kg7 {[%clk 0:00:05.9]} 56. Rd7+ {[%clk 0:01:31.9]}
56... Kh6 {[%clk 0:00:05.8]} 57. Rf7 {[%clk 0:01:32]} 57... Ra6 {[%clk 0:00:06]}
58. Kf3 {[%clk 0:01:32.4]} 58... Rd6 {[%clk 0:00:05.5]} 59. Re7 {[%clk
0:01:31.2]} 59... Rc6 {[%clk 0:00:05.3]} 60. Rf7 {[%clk 0:01:31.4]} 60... Rd6
{[%clk 0:00:05.2]} 61. e4 {[%clk 0:01:32]} 61... dxe4+ {[%clk 0:00:05.1]} 62.
Kxe4 {[%clk 0:01:32]} 62... Re6+ {[%clk 0:00:05.6]} 63. Kf5 {[%clk 0:01:29.9]}
63... Rd6 {[%clk 0:00:05.2]} 64. Ke4 {[%clk 0:01:26.3]} 64... Re6+ {[%clk
0:00:05.4]} 65. Kd5 {[%clk 0:01:26.8]} 65... Ra6 {[%clk 0:00:05.8]} 66. Kc5
{[%clk 0:01:24.9]} 66... Ra5+ {[%clk 0:00:04]} 67. Kb4 {[%clk 0:01:24.5]} 67...
Rd5 {[%clk 0:00:04.3]} 68. Kc4 {[%clk 0:01:25.1]} 68... Rd6 {[%clk 0:00:04.8]}
69. d5 {[%clk 0:01:24.6]} 69... Ra6 {[%clk 0:00:04.8]} 70. Kc5 {[%clk
0:01:24.1]} 70... Ra1 {[%clk 0:00:04.9]} 71. d6 {[%clk 0:01:23.9]} 71... Rc1+
{[%clk 0:00:05.8]} 72. Kb6 {[%clk 0:01:23.8]} 72... Ra1 {[%clk 0:00:05.8]} 73.
d7 {[%clk 0:01:23]} 73... Rb1+ {[%clk 0:00:06]} 74. Kc7 {[%clk 0:01:23.1]} 74...
Rc1+ {[%clk 0:00:06.5]} 75. Kd8 {[%clk 0:01:22.8]} 75... Rc6 {[%clk 0:00:06.2]}
76. Ke8 {[%clk 0:01:22.3]} 76... Rd6 {[%clk 0:00:06.1]} 77. d8=Q {[%clk
0:01:19.3]} 77... Rxd8+ {[%clk 0:00:04.9]} 78. Kxd8 {[%clk 0:01:19.8]} 78... f5
{[%clk 0:00:05.8]} 79. Rxf5 {[%clk 0:01:19.7]} 79... Kg7 {[%clk 0:00:06]} 80.
Rxg5+ {[%clk 0:01:20.4]} 80... Kh6 {[%clk 0:00:06.6]} 81. Rb5 {[%clk 0:01:19.7]}
81... Kg7 {[%clk 0:00:06]} 82. g5 {[%clk 0:01:19.1]} 82... Kh8 {[%clk
0:00:05.1]} 83. Ke7 {[%clk 0:01:18]} 83... Kg7 {[%clk 0:00:06]} 84. Rb6 {[%clk
0:01:15.4]} 84... h6 {[%clk 0:00:04]} 85. gxh6+ {[%clk 0:01:13.5]} 85... Kh7
{[%clk 0:00:03.8]} 86. Kf7 {[%clk 0:01:13.5]} 86... Kh8 {[%clk 0:00:03.6]} 87.
Kg6 {[%clk 0:01:14.2]} 1-0